Cogmind - Beta 13 @@@ ROGUE MODE // 2024.03.16 @ 06:42:31 Player: J1ang-5h1 Result: Destroyed by as-97844 with Assembled Heavy Rifle Performance ------------- Evolutions (0) 0 Regions Visited (3) 600 Robots Destroyed (16) 80 Value Destroyed (341) 341 Prototype IDs (25) 500 Alien Tech Used (0) 0 Bonus (300) 300 TOTAL SCORE: 1821 Bonus ------- Aligned with FarCom 300 Cogmind --------- Core Integrity 0/250 Matter 267/300 Energy 100/100 System Corruption 0% Temperature Cool (20) Movement Treading (320) Ox2 Location -10/Exiles Parts ------- > --- POWER (1) -------- (None) > --- PROPULSION (2) --- Light Treads > --- UTILITY (2) ------ High-capacity Storage Unit Structural Scanner > --- WEAPON (2) ------- Mining Claw > --- INVENTORY (20) --- Nuclear Core Fission Core Light Fission Core Light Treads Aluminum Leg Aluminum Leg Compact Wheel High-capacity Battery (250) High-capacity Matter Pod (0) Hacking Suite Assault Rifle Grenade Launcher Field Lobotomy Kit (5) Peak State ------------ > --- POWER ------------ Light Ion Engine > --- PROPULSION ------- Aluminum Leg Aluminum Leg > --- UTILITY ---------- Medium Storage Unit Structural Scanner > --- WEAPON ----------- Medium Laser Assault Rifle > --- INVENTORY -------- Nuclear Core Fission Core Light Fission Core Compact Wheel High-capacity Battery High-capacity Matter Pod Hacking Suite Grenade Launcher Field Lobotomy Kit Mining Claw [Rating: 10] Favorites ----------- Power Light Ion Engine Engine Light Ion Engine Propulsion Aluminum Leg Treads Light Treads Leg Aluminum Leg Utility Structural Scanner Device Structural Scanner Storage Medium Storage Unit Weapon Medium Laser Energy Gun Medium Laser Ballistic Gun Assault Rifle Launcher Grenade Launcher Slashing Weapon Mining Claw Build | -11 -10 -10 -10 ------- Run | Yrd Mat Min Exi Slots Evolved . | . . . . Power . | . . . . Propulsion . | . . . . Utility . | . . . . Weapon . | . . . . Parts Attached 13 | . 9 . 4 Power 1 | . 1 . . Engine 1 | . 1 . . Core . | . . . . Reactor . | . . . . Propulsion 5 | . 3 . 2 Treads 2 | . . . 2 Leg 3 | . 3 . . Wheel . | . . . . Hover . | . . . . Flight . | . . . . Utility 3 | . 2 . 1 Device 1 | . 1 . . Storage 2 | . 1 . 1 Processor . | . . . . Hackware . | . . . . Protection . | . . . . Artifact . | . . . . Weapon 4 | . 3 . 1 Energy Gun 1 | . 1 . . Energy Cannon . | . . . . Ballistic Gun 1 | . 1 . . Ballistic Cannon . | . . . . Launcher 1 | . 1 . . Special Weapon . | . . . . Impact Weapon . | . . . . Slashing Weapon 1 | . . . 1 Piercing Weapon . | . . . . Special Melee Weapon . | . . . . Unidentified Prototypes . | . . . . Parts Lost 4 | . 1 . 3 Power 2 | . 1 . 1 Propulsion 1 | . . . 1 Utility . | . . . . Weapon 1 | . . . 1 Highest Loss Streak 3 | . 1 . 3 To Critical Strikes . | . . . . Average Slot Usage (%) 98 | . 98 100 99 Engine 13 | . 13 14 13 Treads 3 | . . . 6 Leg 24 | . 27 28 21 Device 13 | . 13 14 14 Storage 14 | . 14 14 14 Energy Gun 13 | . 13 14 13 Ballistic Gun 12 | . 14 14 11 Slashing Weapon 1 | . . . 2 Naked Turns . | . . . . Heaviest Build 48 | 14 18 18 48 Greatest Support 40 | 20 20 20 40 Greatest Overweight (x) 2 | . . . 2 Average Overweight (x) . | . . . . Largest Inventory Capacity 20 | . 10 10 20 Average Capacity 11 | . 8 10 15 Most Carried 13 | . 10 10 13 Average Carried 9 | . 8 10 10 Final Capacity 20 | 8 10 10 20 Final Carried 13 | 6 10 10 13 Class Distribution -------------------- 100% | Mutant Dominant Class ---------------- Mutant | -10/Materials Mutant | -10/Mines Mutant | -10/Exiles Resources | -11 -10 -10 -10 ----------- Run | Yrd Mat Min Exi Matter Collected 463 | 200 259 . 4 Remotely . | . . . . Salvage Created 460 | . 460 . . Parts 31 | . 31 . . Haulers Intercepted 2 | . 2 . . Recyclers Shooed 2 | . 2 . . Parts Field Recycled . | . . . . Retrieved Matter . | . . . . Parts Self-Destructed . | . . . . Prevented . | . . . . Kills | -11 -10 -10 -10 ------- Run | Yrd Mat Min Exi Combat Hostiles Destroyed 13 | . 13 . . Guns 11 | . 11 . . AOE 2 | . 2 . . Classes Destroyed 4 | . 4 . . Hauler 2 | . 2 . . Operator 1 | . 1 . . Swarmer 6 | . 6 . . Grunt 7 | . 7 . . Best Kill Streak 4 | . 4 . . Combat Bots Only 3 | . 3 . . Max Kills in Single Turn 1 | . 1 . . Gunslinging . | . . . . Exploded 1 | . 1 . . Melee . | . . . . Uniques/NPCs Destroyed . | . . . . Combat | -11 -10 -10 -10 -------- Run | Yrd Mat Min Exi Hostile Shots Fired 77 | . 62 . 15 Missed 19 | . 16 . 3 Damage Taken 1058 | . 525 . 533 Core 255 | . 134 . 121 Absorbed by Shields . | . . . . Regen/Repaired (Parts) 103 | . 103 . . Core Remaining (%) 100 | 100 . . . Volleys Fired 55 | . 55 . . Largest 2 | . 2 . . Hottest 70 | . 70 . . Shots Fired 107 | . 107 . . Gun 104 | . 104 . . Cannon . | . . . . Launcher 3 | . 3 . . Special . | . . . . Kinetic 52 | . 52 . . Thermal 52 | . 52 . . Explosive 3 | . 3 . . Electromagnetic . | . . . . Robot Hit Streak 6 | . 6 . . Robot Miss Streak 5 | . 5 . . Penetration Max . | . . . . Secondary Targets 1 | . 1 . . Max Gunslinging Chain 1 | . 1 . . Shots Hit Robots 58 | . 57 . 1 Core Hits 26 | . 26 . . Critical Kills . | . . . . Critical Parts Destroyed . | . . . . Critical Strikes 3 | . 3 . . Burn 3 | . 3 . . Melee Attacks 1 | . . . 1 Impact . | . . . . Slashing 1 | . . . 1 Piercing . | . . . . Sneak Attacks . | . . . . Combat Hostiles . | . . . . Follow-up Attacks . | . . . . Damage Inflicted 859 | . 859 . . Guns 703 | . 703 . . Cannons . | . . . . Explosions 156 | . 156 . . Melee . | . . . . Ramming . | . . . . Kinetic 403 | . 403 . . Thermal 300 | . 300 . . Explosive 156 | . 156 . . Electromagnetic . | . . . . Impact . | . . . . Slashing . | . . . . Piercing . | . . . . Highest Corruption . | . . . . Average Corruption . | . . . . Corruption Purged . | . . . . Corruption Blocked . | . . . . Overload Shots . | . . . . Overflow Damage . | . . . . Projectiles . | . . . . Explosions . | . . . . Melee . | . . . . Knockbacks . | . . . . Impact . | . . . . Kinetic . | . . . . Secondary . | . . . . Self-Inflicted Damage . | . . . . Shots . | . . . . Rammed . | . . . . Targets Rammed . | . . . . Kicked . | . . . . Crushed . | . . . . Highest Temperature 192 | . 192 . . Average Temperature 51 | . 51 . . Received Heat Transfer 203 | . 183 . 20 Siege Activations . | . . . . Robots Corrupted . | . . . . Combat Hostiles . | . . . . Parts Fried . | . . . . Impact Corruptions . | . . . . Robots Melted . | . . . . Combat Hostiles . | . . . . Parts Melted 1 | . 1 . . Heat Transferred 1110 | . 1110 . . Parts Sabotaged . | . . . . Parts Stolen . | . . . . Parts Stripped . | . . . . Power Chain Reactions . | . . . . Alert | -11 -10 -10 -10 ------- Run | Yrd Mat Min Exi Peak Influence 259 | . 259 35 . Initial 35 | . . 35 . Average 112 | . 114 35 . Maximum Alert Level 1 | . 1 . . Low Security (%) 93 | . 92 100 . Level 1 6 | . 7 . . Level 2 . | . . . . Level 3 . | . . . . Level 4 . | . . . . Level 5 . | . . . . High Security . | . . . . Max Security . | . . . . Squads Dispatched 3 | . 3 . . Investigation . | . . . . Extermination . | . . . . Reinforcement 3 | . 3 . . Assault . | . . . . Garrison . | . . . . Intercept . | . . . . Searches Triggered . | . . . . Construction Impeded . | . . . . Haulers Reinforced . | . . . . Active Scanning Responses . | . . . . Cargo Convoy Interrupts . | . . . . Stealth | -11 -10 -10 -10 --------- Run | Yrd Mat Min Exi Distress Signals 1 | . 1 . . Communications Jammed . | . . . . Distress Signals . | . . . . Times Spotted 34 | . 22 . 12 Peak Tracking Total 13 | . 4 . 13 Tactical Retreats 4 | . 2 . 2 Traps | -11 -10 -10 -10 ------- Run | Yrd Mat Min Exi Traps Triggered 2 | . 2 . . Indirectly . | . . . . Trap Hack Attempts . | . . . . Triggered . | . . . . Disarmed 5 | . 5 . . Reprogrammed . | . . . . Reused . | . . . . Traps Extracted . | . . . . Installed . | . . . . Triggered . | . . . . Machines | -11 -10 -10 -10 ---------- Run | Yrd Mat Min Exi Machines Disabled 1 | . 1 . . Max in Single Turn 1 | . 1 . . Machines Repaired . | . . . . Machines Dismantled . | . . . . Machines Sabotaged . | . . . . Overloaded Fab Kills . | . . . . Hacking | -11 -10 -10 -10 --------- Run | Yrd Mat Min Exi Machines Accessed 11 | . 9 . 2 Terminals 7 | . 7 . . Fabricators . | . . . . Repair Stations 1 | . 1 . . Recycling Units 1 | . 1 . . Scanalyzers . | . . . . Garrison Access . | . . . . Total Hacks 57 | . 38 . 19 Successful 40 | . 21 . 19 Failed 17 | . 17 . . Catastrophic 2 | . 2 . . Database Lockouts . | . . . . Manual 20 | . 19 . 1 Terminals 27 | . 27 . . Fabricators . | . . . . Repair Stations 6 | . 6 . . Recycling Units 5 | . 5 . . Scanalyzers . | . . . . Garrison Access . | . . . . Terminal Hacks 30 | . 11 . 19 Record 18 | . . . 18 Robot Analysis 3 | . 3 . . Prototype ID Bank 1 | . 1 . . Terminal Index 1 | . 1 . . Alert Level 1 | . 1 . . Locate Traps 1 | . 1 . . Disarm Traps 1 | . 1 . . Maintenance Status 1 | . 1 . . Transport Status 1 | . 1 . . Recall Reinforcements 1 | . 1 . . Derelict Proto ID Bank 1 | . . . 1 Fabricator Hacks . | . . . . Repair Station Hacks 5 | . 5 . . Scan Component 3 | . 3 . . Repair 2 | . 2 . . Recycling Unit Hacks 1 | . 1 . . Report Inventory 1 | . 1 . . Scanalyzer . | . . . . Garrison Access Hacks . | . . . . Unauthorized Hacks 4 | . 4 . . Terminals 3 | . 3 . . Botnet 3 | . 3 . . Fabricators . | . . . . Repair Stations . | . . . . Recycling Units 1 | . 1 . . Mask 1 | . 1 . . Scanalyzers . | . . . . Garrison Access . | . . . . Data Cores Recovered . | . . . . Used . | . . . . Hacking Detections 8 | . 8 . . Full Trace Events . | . . . . Feedback Events . | . . . . Feedback Blocked . | . . . . Robot Schematics Acquired . | . . . . Robots Built . | . . . . Authchips . | . . . . Time . | . . . . Total Robot Build Rating . | . . . . Part Schematics Acquired . | . . . . Parts Built . | . . . . Authchips . | . . . . Time . | . . . . Total Part Build Rating . | . . . . Parts Repaired 2 | . 2 . . Time 52 | . 52 . . Parts Recycled . | . . . . Recycled Matter . | . . . . Retrieved Matter . | . . . . Retrieved Components . | . . . . Parts Scanalyzed . | . . . . Part Schematics Acquired . | . . . . Parts Damaged . | . . . . Bothacking | -11 -10 -10 -10 ------------ Run | Yrd Mat Min Exi Used RIF Installer . | . . . . Robots Hacked . | . . . . Non-combat . | . . . . Combat . | . . . . Robot Hacks Applied . | . . . . Relay Couplers Released . | . . . . Fabnet Peak Effective % . | . . . . Robots Rewired . | . . . . Allies Hacked . | . . . . Hacks Repelled . | . . . . Allies | -11 -10 -10 -10 -------- Run | Yrd Mat Min Exi Total Allies . | . . . . Largest Group . | . . . . Highest-Rated Group . | . . . . Highest-Rated Ally . | . . . . Total Orders . | . . . . Ally Attacks . | . . . . Total Damage . | . . . . Kills . | . . . . Allies Corrupted . | . . . . Allies Melted . | . . . . Intel | -11 -10 -10 -10 ------- Run | Yrd Mat Min Exi Robot Analysis Total 3 | . 3 . . Derelict Logs Recovered . | . . . . Drone Launches . | . . . . Drone Recoveries . | . . . . Exploration | -11 -10 -10 -10 ------------- Run | Yrd Mat Min Exi Turns Passed 2513 | . 1263 23 1227 Spaces Moved 1601 | 1 846 20 734 Core . | . . . . Treads 108 | . . . 108 Legs 1493 | 1 846 20 626 Wheels . | . . . . Hover . | . . . . Flight . | . . . . Fastest Speed 120 | 120 120 120 120 Average Speed 140 | 120 120 120 164 Slowest Speed 320 | 120 120 120 320 Overloaded Moves . | . . . . Propulsion Burnouts . | . . . . Robots Hopped . | . . . . Cave-ins Triggered . | . . . . Exploration Rate (%) 47 | 2 92 5 90 Regions Visited 3 Branch Regions 2 Pre-discovered Areas 1 | . . . 1 Known Exits Taken . | . . . . Unknown Exits Taken 3 | 1 1 1 . Scrap Searched . | . . . . Spaces Dug . | . . . . Terrain Destroyed 17 | . 17 . . Melee . | . . . . Projectile . | . . . . AOE 17 | . 17 . . Terrain Rammed . | . . . . Walls Destroyed . | . . . . Machines Disabled . | . . . . Actions | -11 -10 -10 -10 --------- Run | Yrd Mat Min Exi Total 1758 | . 987 19 752 Wait 64 | . 64 . . Move 1598 | . 845 19 734 Hop . | . . . . Pick Up 14 | . 8 . 6 Fast Attach 3 | . 3 . . Attach 1 | . 1 . . Detach . | . . . . Swap 9 | . 5 . 4 Drop 11 | . 6 . 5 Fire 55 | . 55 . . Melee 1 | . . . 1 Ram . | . . . . Kick . | . . . . Crush . | . . . . Escape Stasis . | . . . . Rewire 2 | . . . 2 Trap . | . . . . Miscellaneous . | . . . . Route ------- -11/Scrapyard -10/Materials (discovered 6 exits: [*Mat x3] / [*Min x2] / [*Sub]) -10/Mines -10/Exiles (discovered 1 exit: [*Min]) History --------- Turn | Location | Event 1 | -11/Scrapyard | Discovered new exit (range 0) 1 | -11/Scrapyard | Entered Materials 310 | -10/Materials | Build established: Mutant 335 | -10/Materials | Repaired Aluminum Leg 363 | -10/Materials | Repaired Med. Laser 517 | -10/Materials | Discovered new exit (range 10) 520 | -10/Materials | Discovered new exit (range 14) 548 | -10/Materials | Core integrity fell below 50% 985 | -10/Materials | Discovered new exit (range 16) 1039 | -10/Materials | Discovered new exit (range 8) 1084 | -10/Materials | Discovered new exit (range 6) 1256 | -10/Materials | Discovered new exit (range 10) 1264 | -10/Materials | Entered Mines 1279 | -10/Mines | Deemed a non-threat by the Exiles lab entrance 1279 | -10/Mines | Discovered new exit (range 6) 1287 | -10/Mines | Entered Exiles 1344 | -10/Exiles | Met 8R-AWN 1366 | -10/Exiles | Met EX-HEX 1447 | -10/Exiles | Met EX-BIN 1468 | -10/Exiles | Aligned with FarCom system 1469 | -10/Exiles | Given EX-Vault access code 1512 | -10/Exiles | Opened EX-Vault 1525 | -10/Exiles | Found Field Lobotomy Kit 1549 | -10/Exiles | Warned to stay clear of 0b10 Research branches 1592 | -10/Exiles | Met EX-DEC 1609 | -10/Exiles | Learned location of Zion (-7) 1663 | -10/Exiles | Visited The Gauntlet 1936 | -10/Exiles | Discovered new exit (range 14) 2494 | -10/Exiles | Attacked by the Exiles 2507 | -10/Exiles | Core integrity fell below 20% 2514 | -10/Exiles | Destroyed by as-97844 with Assembled Heavy Rifle Last Messages --------------- Who left my Assembled plushie in the Analyzer again?! I'm not erasing this message until I get an answer. --BIN 01874_ Dropped Med. Storage Unit. 01936_ EXIT=FOUND 02227_ Acquired Lgt. Treads. 02491_ Attempting to rewire A-02 Transporter. 02491_ A-02 Transporter is unpowered. 02492_ Attempting to rewire A-02 Transporter. 02492_ A-02 Transporter is unpowered. 02493_ Sneak attack on A-02 Transporter. 02493_ A-02 Transporter Lgt. Treads ripped off. 02494_ EXILES: Hostile robot within lab perimeter. Defensive protocols time, folks! 02497_ Lgt. Ion Engine destroyed. 02498_ Acquired 4 matter. 02500_ Machine disabled. 02506_ Med. Laser destroyed. 02509_ EX-BIN: "I just want to science!" 02512_ Lgt. Treads destroyed. Map ----- +----------------------------------------------------+ | ### "##??????????########?????##" "" | | ### ""##??????????########?????##" "" | | ##" ""##????????## """##?????##" "" | | ##" ""##????????##"" """##?????### "" | | #"" ####????????##"" ##?????### "" | | ####????????##"" ##??????##" "X" "" | | ###?????????##"" "##??????##" """ | | "####???????## ""##?????###" """""""" | | #####??????##"" ""##????####" ######### | | ########?#### ###########"" ######### | | ###"" ############ ##########"" ###?????? | | ####" """#####X# #"###""""""" ####?#### | | ####" """""" " "" ######## | | ####"# "" """ " #####"" | | #?##### " " " | | ??####### | | ?????###### | | ???????##### | | ?????????#### | | ??????????####" | | ???????????###""" """""" | | ???????????###" ######""" | | ??????????###"" ""###########""" | | ??????????###""" """####??#######""" | | ??????????##""" """####???????###"""" | | ??????????##""" @ ""##############"" | | ??????????##"" %##############"""" | | ??????????##""" a ## ####""" | | ??????????##""t aa a % " | | ??????????###"" a a | | ??????????###"""" c %a | | ???????????### | | ???????????###" " "" | | ????????????##"""" c ""## ##""" " " | | ????????????##"" ""#### ######""" " | | ????????????##" """"##### ########""" | | ????????????##""" """##### ########### | | ????????????### ""#####! "!##?##### | | ????????????###"" """######" !##?????? | | ?????????????###""" ####?##" "##?????? | | ?????????????####"""" ####??##!!""!"##?????? | | ??????????????##### ###???##########?????? | | ???????????????######## ###????##########?????? | | ?????????????????####### ###???????????????????? | | ?????????????????????### ##????????????????????? | | ??????????????????????## ##????????????????????? | | ?????????????#####????## ##????????????????????? | | ???????????#######????## ##????????????????????? | | ????"""""??##"""""????## ##????????????????????? | | ??"""""""####"""""""#### ##????????????????????? | +----------------------------------------------------+ Best States ------------- Heat Dissipation 25 Energy Generation 10 Energy Capacity 250 Matter Stores 300 Matter Capacity 300 Sight Range 16 Terrain Scan Density 10 Evasion (%) 55 Recoil Reduction 2 Item Schematics ----------------- None Robot Schematics ------------------ None Fabricated ------------ Nothing Alien Tech Used ----------------- None Achievements -------------- None Challenges ------------ None Game ------ Seed BiometalShieldDatajack Manual? 0 Play Time 00:19:06 Cumulative 186.0 hours Start 2024.03.16 @ 06:23:48 End 2024.03.16 @ 06:42:31 Sessions 1 Manual Loads 0 Difficulty Rogue Special Mode None Game No. 143 Rogue 133 Adventurer 0 Explorer 10 Win Type - Total 3 Types 3/0/0/0/0/0/0/0/0 Lore% 59 Gallery% 69 Achievement% 51 Wizard Run 0 Options --------- Layout 1 ASCII 0 Keyboard 0 Movement Arrows Keybinds 1 Fullscreen 1 Font 24/Smallcaps Map View 50x35 Zoom Use 0% Tactical HUD 1 Map Filters NONE Filters NONE Steam 1 RUN: 65250fde-6910-4eec-a067-3932a870288d